fUST/lending_fUST_20250730
["ID","MTS","AMOUNT","RATE_DAILY","PERIOD"]
[376084084,1753857041836,-460.0,0.00018858,2]
[376084086,1753857041846,-460.0,0.00018858,2]
[376084088,1753857041861,-460.0,0.00018858,2]
[376084089,1753857041871,-460.0,0.00018858,2]
[376084090,1753857041880,-460.0,0.00018858,2]
[376084091,1753857041890,-460.0,0.00018858,2]
[376084092,1753857041899,-465.95640775,0.00018858,2]
[376084093,1753857041909,-466.68342444,0.00018858,2]
[376084094,1753857041919,-246.06826131,0.00018858,2]
[376084095,1753857041929,-547.92105966,0.00018858,2]
[376084096,1753857041939,-460.0,0.00018858,2]
[376084097,1753857041948,-460.0,0.00018858,2]
[376084099,1753857041957,-460.0,0.00018858,2]
[376084100,1753857041967,-460.0,0.00018858,2]
[376084101,1753857041977,-460.0,0.00018858,2]
[376084102,1753857041986,-460.0,0.00018858,2]
[376084103,1753857041995,-460.0,0.00018858,2]
[376084105,1753857042005,-460.0,0.00018858,2]
[376084107,1753857042015,-5546.43,0.00018858,2]
[376084109,1753857042025,-5315.33,0.00018858,2]
[376084111,1753857042035,-1137.54,0.00018858,2]
[376084113,1753857042045,-500.0,0.00018858,2]
[376084129,1753857042192,-591.66326158,0.00018858,2]
[376084131,1753857042203,-1268.25,0.00018858,2]
[376084133,1753857042213,-500.0,0.00018858,2]
[376084135,1753857042223,-1192.56,0.00018859,2]
[376084137,1753857042233,-460.0,0.00019128,2]
[376084139,1753857042242,-460.0,0.00019128,2]
[376084141,1753857042252,-460.0,0.00019128,2]
[376084143,1753857042262,-460.0,0.00019128,2]
[376084145,1753857042271,-460.0,0.00019128,2]
[376084147,1753857042281,-460.0,0.00019128,2]
[376084149,1753857042291,-460.0,0.00019128,2]
[376084151,1753857042301,-460.0,0.00019128,2]
[376084153,1753857042311,-460.0,0.00019128,2]
[376084155,1753857042320,-460.0,0.00019128,2]
[376084157,1753857042329,-460.0,0.00019128,2]
[376084159,1753857042339,-1270.42,0.00019128,2]
[376084161,1753857042349,-460.0,0.00019128,2]
[376084163,1753857042358,-460.0,0.00019128,2]
[376084164,1753857042368,-460.0,0.00019128,2]
[376084167,1753857042377,-460.0,0.00019128,2]
[376084168,1753857042387,-460.0,0.00019128,2]
[376084170,1753857042396,-10442.82264618,0.00019129,2]
[376084172,1753857042406,-464.44983749,0.00019129,2]
[376084174,1753857042416,-460.0,0.00019129,2]
[376084176,1753857042426,-460.0,0.00019129,2]
[376084178,1753857042435,-460.0,0.00019129,2]
[376084180,1753857042445,-460.0,0.00019129,2]
[376084182,1753857042454,-460.0,0.00019129,2]
[376084184,1753857042464,-460.0,0.00019129,2]
[376084186,1753857042473,-460.0,0.00019129,2]
[376084188,1753857042482,-460.0,0.00019129,2]
[376084190,1753857042491,-460.0,0.00019129,2]
[376084192,1753857042500,-540.0,0.00019129,2]
[376084194,1753857042510,-460.0,0.00019129,2]
[376084196,1753857042519,-485.40378814,0.00019129,2]
[376084198,1753857042530,-460.0,0.00019129,2]
[376084200,1753857042539,-460.0,0.00019129,2]
[376084202,1753857042548,-460.0,0.00019129,2]
[376084206,1753857042558,-477.79821155,0.00019129,2]
[376084208,1753857042567,-460.0,0.00019129,2]
[376084210,1753857042576,-460.0,0.00019129,2]
[376084212,1753857042585,-3272.8,0.00019129,2]
[376084214,1753857042594,-460.0,0.00019129,2]
[376084216,1753857042604,-460.0,0.00019129,2]
[376084218,1753857042613,-460.0,0.00019129,2]
[376084220,1753857042622,-460.0,0.00019129,2]
[376084222,1753857042631,-460.0,0.00019129,2]
[376084224,1753857042640,-460.0,0.00019129,2]
[376084226,1753857042650,-460.0,0.00019129,2]
[376084228,1753857042662,-460.0,0.00019129,2]
[376084230,1753857042672,-460.0,0.00019129,2]
[376084232,1753857042682,-460.0,0.00019129,2]
[376084234,1753857042691,-460.0,0.00019129,2]
[376084236,1753857042700,-650.29,0.00019129,2]
[376084239,1753857042710,-460.0,0.00019129,2]
[376084241,1753857042719,-460.0,0.00019129,2]
[376084243,1753857042728,-460.0,0.00019129,2]
[376084245,1753857042737,-460.0,0.00019129,2]
[376084247,1753857042747,-460.0,0.00019129,2]
[376084249,1753857042756,-460.0,0.00019129,2]
[376084251,1753857042766,-2484.25,0.00019129,2]
[376084253,1753857042775,-460.0,0.00019129,2]
[376084255,1753857042785,-474.78320282,0.00019129,2]
[376084257,1753857042794,-460.0,0.00019129,2]
[376084259,1753857042803,-460.0,0.00019129,2]
[376084261,1753857042812,-460.0,0.00019129,2]
[376084263,1753857042821,-460.0,0.00019129,2]
[376084265,1753857042831,-460.0,0.00019129,2]
[376084267,1753857042840,-460.0,0.00019129,2]
[376084269,1753857042849,-460.0,0.00019129,2]
[376084271,1753857042859,-442.74535995,0.00019129,2]
[376084273,1753857042868,-460.0,0.00019129,2]
[376084275,1753857042878,-460.0,0.00019129,2]
[376084277,1753857042887,-1742.93,0.00019129,2]
[376084279,1753857042896,-460.0,0.00019129,2]
[376084281,1753857042906,-460.0,0.00019129,2]
[376084283,1753857042916,-1935.42,0.00019129,2]
[376084285,1753857042926,-420.79500683,0.00019129,2]
[376084287,1753857042936,-460.0,0.00019129,2]
[376084289,1753857042946,-490.47,0.00019129,2]
[376084291,1753857042956,-460.0,0.00019129,2]
[376084293,1753857042965,-460.0,0.00019129,2]
[376084295,1753857042975,-460.0,0.00019129,2]
[376084297,1753857042984,-460.0,0.00019129,2]
[376084299,1753857042994,-969.02,0.00019129,2]
[376084300,1753857043003,-460.0,0.00019129,2]
[376084302,1753857043012,-460.0,0.00019129,2]
[376084304,1753857043022,-460.0,0.00019129,2]
[376084306,1753857043031,-460.0,0.00019129,2]
[376084308,1753857043044,-460.0,0.00019129,2]
[376084310,1753857043053,-460.0,0.00019129,2]
[376084312,1753857043063,-460.0,0.00019129,2]
[376084316,1753857043074,-460.0,0.00019129,2]
[376084318,1753857043083,-460.0,0.00019129,2]
[376084321,1753857043092,-460.0,0.00019129,2]
[376084323,1753857043102,-460.0,0.00019129,2]
[376084325,1753857043113,-460.0,0.00019129,2]
[376084327,1753857043123,-460.0,0.00019129,2]
[376084329,1753857043133,-497.02887072,0.00019129,2]
[376084330,1753857043144,-460.0,0.00019129,2]
[376084331,1753857043154,-460.0,0.00019129,2]
[376084332,1753857043165,-611.96,0.00019129,2]
[376084333,1753857043174,-500.0,0.00019129,2]
[376084334,1753857043184,-500.0,0.00019129,2]
[376084335,1753857043194,-567.93606352,0.00019129,2]
[376084336,1753857043204,-630.57122505,0.00019129,2]
[376084337,1753857043213,-255.25622561,0.00019129,2]
[376084339,1753857043225,-500.0,0.00019129,2]
[376084340,1753857043235,-500.0,0.00019129,2]
[376084341,1753857043245,-166.47801988,0.00019129,2]
[376084342,1753857043255,-500.0,0.00019129,2]
[376084343,1753857043265,-502.93030711,0.00019129,2]
[376084344,1753857043274,-500.0,0.00019129,2]
[376084345,1753857043284,-500.0,0.00019129,2]
[376084346,1753857043293,-391.01834487,0.00019129,2]
[376084347,1753857043303,-500.0,0.00019129,2]
[376084348,1753857043312,-500.0,0.00019129,2]
[376084349,1753857043322,-500.0,0.00019129,2]
[376084350,1753857043331,-500.0,0.00019129,2]
[376084351,1753857043340,-500.0,0.00019129,2]
[376084352,1753857043350,-500.0,0.00019129,2]
[376084353,1753857043359,-460.0,0.0001913,2]
[376084354,1753857043368,-460.0,0.0001913,2]
[376084355,1753857043378,-460.0,0.0001913,2]
[376084356,1753857043387,-460.0,0.0001913,2]
[376084357,1753857043396,-460.0,0.0001913,2]
[376084358,1753857043406,-460.0,0.0001913,2]
[376084359,1753857043416,-460.0,0.0001913,2]
[376084360,1753857043425,-469.79,0.0001913,2]
[376084361,1753857043434,-460.0,0.0001913,2]
[376084362,1753857043444,-460.0,0.0001913,2]
[376084363,1753857043453,-460.0,0.0001913,2]
[376084364,1753857043463,-460.0,0.0001913,2]
[376084365,1753857043473,-460.0,0.0001913,2]
[376084366,1753857043483,-460.0,0.0001913,2]
[376084367,1753857043492,-1202.66,0.0001913,2]
[376084368,1753857043503,-460.0,0.0001913,2]
[376084369,1753857043512,-460.0,0.0001913,2]
[376084370,1753857043521,-460.0,0.0001913,2]
[376084371,1753857043531,-460.0,0.0001913,2]
[376084372,1753857043540,-460.0,0.0001913,2]
[376084373,1753857043549,-460.0,0.0001913,2]
[376084374,1753857043564,-460.0,0.0001913,2]
[376084375,1753857043573,-460.0,0.0001913,2]
[376084376,1753857043582,-460.0,0.0001913,2]
[376084377,1753857043592,-465.35351247,0.0001913,2]
[376084378,1753857043601,-460.0,0.0001913,2]
[376084379,1753857043612,-499.49,0.0001913,2]
[376084380,1753857043622,-460.0,0.0001913,2]
[376084381,1753857043632,-460.0,0.0001913,2]
[376084382,1753857043642,-460.0,0.0001913,2]
[376084383,1753857043651,-474.16,0.0001913,2]
[376084384,1753857043661,-460.0,0.0001913,2]
[376084385,1753857043670,-460.0,0.0001913,2]
[376084386,1753857043679,-460.0,0.0001913,2]
[376084387,1753857043690,-655.12224737,0.0001913,2]
[376084388,1753857043736,-61.14775263,0.0001913,2]
[376084389,1753857043746,-460.0,0.0001913,2]
[376084390,1753857043755,-460.0,0.0001913,2]
[376084391,1753857043765,-355.15268489,0.0001913,2]
[376084395,1753857043836,-460.0,0.00018859,2]
[376084397,1753857043847,-104.84731511,0.0001913,2]
[376084399,1753857043856,-115.73665457,0.0001913,2]
[376084401,1753857043867,-344.26334543,0.0001913,2]
[376084403,1753857043877,-460.0,0.0001913,2]
[376084405,1753857043886,-615.49,0.0001913,2]
[376084407,1753857043897,-460.0,0.0001913,2]
[376084409,1753857043906,-401.81638893,0.0001913,2]
[376084412,1753857043919,-58.18361107,0.0001913,2]
[376084414,1753857043929,-460.0,0.0001913,2]
[376084416,1753857043938,-248.25556314,0.0001913,2]
[376084418,1753857043950,-211.74443686,0.0001913,2]
[376084420,1753857043959,-460.0,0.0001913,2]
[376084422,1753857043968,-460.0,0.0001913,2]
[376084424,1753857043978,-599.14331357,0.0001913,2]
[376084426,1753857043987,-460.0,0.0001913,2]
[376084428,1753857043996,-460.0,0.0001913,2]
[376084430,1753857044007,-460.0,0.00019131,2]
[376084432,1753857044017,-460.0,0.00019131,2]
[376084434,1753857044026,-460.0,0.00019131,2]
[376084436,1753857044035,-101.68236778,0.00019131,2]
[376084438,1753857044047,-358.31763222,0.00019131,2]
[376084440,1753857044056,-485.80547994,0.00019131,2]
[376084442,1753857044066,-460.0,0.00019131,2]
[376084444,1753857044077,-460.0,0.00019131,2]
[376084446,1753857044086,-460.0,0.00019131,2]
[376084448,1753857044096,-479.63322651,0.00019131,2]
[376084450,1753857044105,-460.0,0.00019131,2]
[376084452,1753857044115,-165.48462455,0.00019131,2]
[376084455,1753857044131,-294.51537545,0.00019131,2]
[376084457,1753857044145,-460.0,0.00019131,2]
[376084459,1753857044158,-460.0,0.00019131,2]
[376084461,1753857044167,-460.0,0.00019131,2]
[376084463,1753857044178,-460.0,0.00019131,2]
[376084465,1753857044188,-460.0,0.00019131,2]
[376084467,1753857044197,-460.0,0.00019131,2]
[376084469,1753857044207,-460.0,0.00019131,2]
[376084470,1753857044217,-460.0,0.00019131,2]
[376084471,1753857044226,-460.0,0.00019131,2]
[376084472,1753857044236,-460.0,0.00019131,2]
[376084473,1753857044245,-460.0,0.00019131,2]
[376084474,1753857044255,-460.0,0.00019131,2]
[376084475,1753857044264,-460.0,0.00019131,2]
[376084476,1753857044274,-460.0,0.00019131,2]
[376084477,1753857044284,-463.1904532,0.00019131,2]
[376084478,1753857044293,-460.0,0.00019131,2]
[376084479,1753857044303,-460.0,0.00019131,2]
[376084480,1753857044312,-460.0,0.00019131,2]
[376084481,1753857044321,-460.0,0.00019131,2]
[376084482,1753857044331,-460.0,0.00019131,2]
[376084483,1753857044340,-460.0,0.00019131,2]
[376084484,1753857044349,-1470.25,0.00019131,2]
[376084485,1753857044359,-460.0,0.00019132,2]
[376084486,1753857044368,-460.0,0.00019132,2]
[376084487,1753857044378,-461.75748655,0.00019132,2]
[376084488,1753857044387,-460.0,0.00019132,2]
[376084489,1753857044396,-460.0,0.00019132,2]
[376084490,1753857044406,-460.0,0.00019132,2]
[376084491,1753857044416,-460.0,0.00019132,2]
[376084492,1753857044425,-460.0,0.00019132,2]
[376084493,1753857044435,-527.448095,0.00019132,2]
[376084494,1753857044444,-460.0,0.00019132,2]
[376084495,1753857044454,-460.0,0.00019132,2]
[376084496,1753857044463,-5546.43,0.00019132,2]
[376084497,1753857044473,-5315.33,0.00019132,2]
[376084498,1753857044482,-1137.54,0.00019132,2]
[376084499,1753857044492,-1268.25,0.00019132,2]
[376084501,1753857044501,-1192.56,0.00019133,2]
[376084502,1753857044511,-460.0,0.00019133,2]
[376084504,1753857044521,-500.0,0.00019164,2]
[376084506,1753857044530,-501.12175368,0.00019173,2]
[376084508,1753857044539,-500.0,0.00019173,2]
[376084510,1753857044548,-500.0,0.00019173,2]
[376084512,1753857044557,-500.0,0.00019173,2]
[376084514,1753857044566,-500.0,0.00019173,2]
[376084515,1753857044575,-500.0,0.00019173,2]
[376084517,1753857044585,-501.6986517,0.00019173,2]
[376084519,1753857044594,-163.10501689,0.00019173,2]
[376084521,1753857044603,-501.33624158,0.00019173,2]
[376084523,1753857044614,-500.0,0.00019173,2]
[376084526,1753857044624,-500.0,0.00019173,2]
[376084528,1753857044633,-500.0,0.00019173,2]
[376084530,1753857044642,-500.69756271,0.00019173,2]
[376084532,1753857044651,-624.9505371,0.00019173,2]
[376084534,1753857044661,-551.66609543,0.00019173,2]
[376084536,1753857044670,-500.37855538,0.00019173,2]
[376084537,1753857044680,-504.08811132,0.00019173,2]
[376084540,1753857044690,-518.70284719,0.00019173,2]
[376084541,1753857044699,-500.0,0.00019173,2]
[376084543,1753857044708,-500.88859753,0.00019173,2]
[376084546,1753857044718,-501.03009105,0.00019173,2]
[376084548,1753857044728,-500.0,0.00019173,2]
[376084550,1753857044737,-134.60264236,0.0001923,15]
[376084695,1753857046148,-319.35390879,0.00018855,2]
[376084697,1753857046159,-140.64609121,0.00018855,2]
[376084699,1753857046169,-460.0,0.00018855,2]
[376084701,1753857046179,-460.0,0.00018855,2]
[376084703,1753857046189,-177.15,0.00019129,2]
[376084705,1753857046199,-460.0,0.00019232,2]
[376084707,1753857046208,-460.0,0.00019232,2]
[376084709,1753857046220,-2181.22,0.00019232,2]
[376084711,1753857046230,-460.0,0.00019232,2]
[376084713,1753857046239,-460.0,0.00019232,2]
[376084715,1753857046249,-460.0,0.00019232,2]
[376084718,1753857046259,-1201.87,0.00019232,2]
[376084720,1753857046269,-200.0,0.00019232,15]
[376084722,1753857046278,-200.0,0.00019232,15]
[376084724,1753857046288,-713.7514932,0.00019377,2]
[376084726,1753857046297,-460.0,0.00019402,2]
[376084728,1753857046307,-460.0,0.00019402,2]
[376084730,1753857046317,-460.0,0.00019402,2]
[376084732,1753857046327,-1270.42,0.00019402,2]
[376084734,1753857046336,-600.03245299,0.00019403,2]
[376084736,1753857046345,-460.0,0.00019403,2]
[376084738,1753857046355,-460.0,0.00019403,2]
[376084740,1753857046364,-460.0,0.00019403,2]
[376084741,1753857046373,-460.0,0.00019403,2]
[376084743,1753857046383,-460.0,0.00019403,2]
[376084745,1753857046392,-460.0,0.00019403,2]
[376084747,1753857046402,-3272.8,0.00019403,2]
[376084749,1753857046412,-460.0,0.00019403,2]
[376084751,1753857046421,-460.0,0.00019403,2]
[376084753,1753857046431,-460.0,0.00019403,2]
[376084755,1753857046440,-460.0,0.00019403,2]
[376084758,1753857046451,-460.0,0.00019403,2]
[376084760,1753857046460,-650.29,0.00019403,2]
[376084761,1753857046469,-460.0,0.00019403,2]
[376084763,1753857046479,-460.0,0.00019403,2]
[376084765,1753857046489,-460.0,0.00019403,2]
[376084767,1753857046499,-2484.25,0.00019403,2]
[376084769,1753857046508,-460.0,0.00019403,2]
[376084771,1753857046517,-460.0,0.00019403,2]
[376084773,1753857046527,-460.0,0.00019403,2]
[376084775,1753857046535,-460.0,0.00019403,2]
[376084777,1753857046545,-460.0,0.00019403,2]
[376084779,1753857046554,-460.0,0.00019403,2]
[376084781,1753857046562,-460.0,0.00019403,2]
[376084783,1753857046572,-460.0,0.00019403,2]
[376084785,1753857046581,-1742.93,0.00019403,2]
[376084787,1753857046590,-460.0,0.00019403,2]
[376084789,1753857046599,-1935.42,0.00019403,2]
[376084791,1753857046608,-475.78919321,0.00019403,2]
[376084793,1753857046617,-490.47,0.00019403,2]
[376084795,1753857046627,-460.0,0.00019403,2]
[376084797,1753857046636,-460.0,0.00019403,2]
[376084799,1753857046646,-460.0,0.00019403,2]
[376084801,1753857046655,-460.0,0.00019403,2]
[376084803,1753857046664,-969.02,0.00019403,2]
[376084805,1753857046674,-460.0,0.00019403,2]
[376084807,1753857046685,-460.0,0.00019403,2]
[376084809,1753857046694,-460.0,0.00019403,2]
[376084811,1753857046704,-476.08619812,0.00019403,2]
[376084813,1753857046713,-460.0,0.00019403,2]
[376084815,1753857046722,-460.0,0.00019403,2]
[376084817,1753857046731,-460.0,0.00019403,2]
[376084819,1753857046740,-460.0,0.00019403,2]
[376084821,1753857046749,-460.0,0.00019403,2]
[376084823,1753857046759,-460.0,0.00019403,2]
[376084825,1753857046768,-460.0,0.00019403,2]
[376084827,1753857046775,-460.0,0.00019403,2]
[376084829,1753857046783,-611.96,0.00019403,2]
[376084831,1753857046791,-462.52913636,0.00019404,2]
[376084833,1753857046800,-236.18774172,0.00019404,2]
[376084835,1753857046809,-460.0,0.00019404,2]
[376084837,1753857046818,-460.0,0.00019404,2]
[376084838,1753857046827,-469.79,0.00019404,2]
[376084839,1753857046836,-460.0,0.00019404,2]
[376084840,1753857046845,-460.0,0.00019404,2]
[376084841,1753857046854,-460.0,0.00019404,2]
[376084842,1753857046863,-460.0,0.00019404,2]
[376084843,1753857046871,-1202.66,0.00019404,2]
[376084844,1753857046881,-460.0,0.00019404,2]
[376084845,1753857046890,-298.15981294,0.00019404,2]
[376084847,1753857046899,-460.0,0.00019404,2]
[376084849,1753857046908,-460.0,0.00019404,2]
[376084851,1753857046919,-460.0,0.00019404,2]
[376084853,1753857046927,-460.0,0.00019404,2]
[376084855,1753857046937,-499.49,0.00019404,2]
[376084857,1753857046946,-460.0,0.00019404,2]
[376084859,1753857046955,-460.0,0.00019404,2]
[376084861,1753857046964,-474.16,0.00019404,2]
[376084863,1753857046974,-460.0,0.00019404,2]
[376084865,1753857046983,-716.27,0.00019404,2]
[376084867,1753857046992,-460.0,0.00019404,2]
[376084869,1753857047002,-460.0,0.00019404,2]
[376084871,1753857047011,-460.0,0.00019404,2]
[376084873,1753857047021,-460.0,0.00019404,2]
[376084875,1753857047030,-615.49,0.00019404,2]
[376084877,1753857047039,-460.0,0.00019404,2]
[376084879,1753857047048,-460.0,0.00019404,2]
[376084881,1753857047058,-460.0,0.00019404,2]
[376084883,1753857047067,-460.0,0.00019405,2]
[376084885,1753857047076,-460.0,0.00019405,2]
[376084887,1753857047085,-460.0,0.00019405,2]
[376084889,1753857047094,-460.0,0.00019405,2]
[376084891,1753857047103,-460.0,0.00019405,2]
[376084893,1753857047112,-460.0,0.00019405,2]
[376084895,1753857047122,-555.19072505,0.00019405,2]
[376084897,1753857047132,-460.0,0.00019405,2]
[376084899,1753857047141,-495.41995814,0.00019405,2]
[376084901,1753857047154,-1470.25,0.00019405,2]
[376084903,1753857047164,-460.0,0.00019406,2]
[376084905,1753857047173,-460.0,0.00019406,2]
[376084907,1753857047183,-460.0,0.00019406,2]
[376084909,1753857047193,-460.0,0.00019406,2]
[376084911,1753857047202,-460.0,0.00019406,2]
[376084913,1753857047212,-5546.43,0.00019406,2]
[376084915,1753857047221,-5315.33,0.00019406,2]
[376084917,1753857047231,-1187.0,0.00019406,2]
[376084919,1753857047240,-1137.54,0.00019406,2]
[376084921,1753857047251,-1268.25,0.00019406,2]
[376084923,1753857047260,-1192.56,0.00019407,2]
[376084925,1753857047269,-460.0,0.00019407,2]
[376084927,1753857047279,-521.98187091,0.00019409,2]
[376084929,1753857047289,-506.85664384,0.00019443,2]
[376084930,1753857047298,-506.34173963,0.00019443,2]
[376084933,1753857047308,-503.24323331,0.00019443,2]
[376084934,1753857047319,-501.28342465,0.00019443,2]
[376084936,1753857047330,-465.46904735,0.00019506,2]
[376084938,1753857047339,-460.0,0.00019506,2]
[376084940,1753857047348,-2181.22,0.00019506,2]
[376084942,1753857047358,-460.0,0.00019506,2]
[376084945,1753857047367,-461.7462564,0.00019506,2]
[376084947,1753857047377,-1201.87,0.00019506,2]
[376084949,1753857047386,-500.0,0.00019535,2]
[376084950,1753857047395,-211.24558351,0.00019535,2]
[376084953,1753857047404,-500.0,0.00019557,2]
[376084954,1753857047414,-500.0,0.00019557,2]
[376084957,1753857047423,-500.0,0.00019557,2]
[376084958,1753857047432,-500.0,0.00019673,2]
[376084960,1753857047442,-500.0,0.00019673,2]
[376084962,1753857047450,-500.0,0.00019673,2]
[376084964,1753857047459,-500.0,0.00019673,2]
[376084966,1753857047468,-500.0,0.00019673,2]
[376084968,1753857047477,-500.0,0.00019673,2]
[376084970,1753857047486,-575.7063143,0.00019673,2]
[376084972,1753857047495,-460.0,0.00019676,2]
[376084974,1753857047505,-460.0,0.00019676,2]
[376084976,1753857047514,-460.0,0.00019676,2]
[376084978,1753857047523,-1270.42,0.00019676,2]
[376084980,1753857047533,-460.0,0.00019677,2]
[376084982,1753857047542,-460.0,0.00019677,2]
[376084984,1753857047552,-460.0,0.00019677,2]
[376084986,1753857047561,-460.0,0.00019677,2]
[376084988,1753857047571,-512.48422645,0.00019677,2]
[376084990,1753857047579,-435.5717107,0.00019677,2]
[376084992,1753857047589,-3272.8,0.00019677,2]
[376084994,1753857047598,-460.0,0.00019677,2]
[376084996,1753857047608,-460.0,0.00019677,2]
[376084998,1753857047617,-460.0,0.00019677,2]
[376085000,1753857047626,-460.0,0.00019677,2]
[376085002,1753857047636,-650.29,0.00019677,2]
[376085004,1753857047646,-460.0,0.00019677,2]
[376085006,1753857047654,-460.0,0.00019677,2]
[376085008,1753857047664,-2484.25,0.00019677,2]
[376085010,1753857047676,-460.0,0.00019677,2]
[376085012,1753857047685,-460.0,0.00019677,2]
[376085014,1753857047694,-460.0,0.00019677,2]
[376085016,1753857047703,-460.0,0.00019677,2]
[376085018,1753857047712,-460.0,0.00019677,2]
[376085020,1753857047722,-460.0,0.00019677,2]
[376085022,1753857047731,-1742.93,0.00019677,2]
[376085024,1753857047740,-460.0,0.00019677,2]
[376085026,1753857047750,-1935.42,0.00019677,2]
[376085028,1753857047759,-490.47,0.00019677,2]
[376085030,1753857047768,-460.0,0.00019677,2]
[376085032,1753857047777,-460.0,0.00019677,2]
[376085034,1753857047786,-460.0,0.00019677,2]
[376085036,1753857047795,-460.0,0.00019677,2]
[376085038,1753857047804,-969.02,0.00019677,2]
[376085040,1753857047815,-460.0,0.00019677,2]
[376085042,1753857047823,-460.0,0.00019677,2]
[376085044,1753857047832,-460.0,0.00019677,2]
[376085046,1753857047842,-460.0,0.00019677,2]
[376085059,1753857047956,-460.0,0.00019677,2]
[376085061,1753857047967,-460.0,0.00019677,2]
[376085063,1753857047976,-460.0,0.00019677,2]
[376085065,1753857047986,-611.96,0.00019677,2]
[376085067,1753857047995,-469.79,0.00019678,2]
[376085069,1753857048004,-460.0,0.00019678,2]
[376085071,1753857048014,-460.0,0.00019678,2]
[376085073,1753857048024,-460.0,0.00019678,2]
[376085075,1753857048034,-460.0,0.00019678,2]
[376085077,1753857048043,-1202.66,0.00019678,2]
[376085079,1753857048053,-460.0,0.00019678,2]
[376085081,1753857048062,-460.0,0.00019678,2]
[376085083,1753857048072,-460.0,0.00019678,2]
[376085085,1753857048082,-499.49,0.00019678,2]
[376085087,1753857048092,-460.0,0.00019678,2]
[376085089,1753857048102,-474.16,0.00019678,2]
[376085091,1753857048112,-716.27,0.00019678,2]
[376085093,1753857048123,-460.0,0.00019678,2]
[376085095,1753857048133,-615.49,0.00019678,2]
[376085097,1753857048144,-460.0,0.00019678,2]
[376085099,1753857048156,-460.0,0.00019678,2]
[376085101,1753857048167,-460.0,0.00019679,2]
[376085103,1753857048177,-460.0,0.00019679,2]
[376085105,1753857048187,-460.0,0.00019679,2]
[376085107,1753857048198,-460.0,0.00019679,2]
[376085109,1753857048208,-460.0,0.00019679,2]
[376085111,1753857048218,-460.0,0.00019679,2]
[376085113,1753857048229,-1470.25,0.00019679,2]
[376085115,1753857048240,-460.0,0.0001968,2]
[376085117,1753857048250,-460.0,0.0001968,2]
[376085119,1753857048260,-5546.43,0.0001968,2]
[376085121,1753857048270,-5315.33,0.0001968,2]
[376085123,1753857048280,-1187.0,0.0001968,2]
[376085125,1753857048290,-1137.54,0.0001968,2]
[376085127,1753857048300,-1268.25,0.0001968,2]
[376085129,1753857048310,-1192.56,0.00019681,2]
[376085131,1753857048320,-460.0,0.00019681,2]
[376085133,1753857048330,-500.0,0.00019694,2]
[376085135,1753857048340,-500.0,0.00019694,2]
[376085137,1753857048350,-127128.40392171,0.000197,2]
[376085139,1753857048360,-1000.0,0.00019721,2]
[376085141,1753857048370,-501.1404907,0.00019721,2]
[376085143,1753857048380,-511.09420633,0.00019721,2]
[376085145,1753857048390,-460.0,0.0001978,2]